Workbook

Sheet 行政事業レビューシート
AJ2: 事業番号 | AS2: =IF(OR(AQ2=" ", AQ2=""), "", "-") ->  | AT2: 2 | AV2: =IF(AW2="", "", "-") -> 
A3: 平成２８年度行政事業レビューシート | AI3: （ | AJ3: 人事院 | AX3: ）
A4: 事業名 | G4: 人事・給与等業務の電子化の推進 | Y4: 担当部局庁 | AE4: 事務総局 | AQ4: 作成責任者
A5: 事業開始年度 | G5: 平成１５年度 | M5: 事業終了 （予定）年度 | S5: 終了予定なし | Y5: 担当課室 | AE5: 電子化推進室 | AQ5: 参事官 長谷川 一也
A6: 会計区分 | G6: 一般会計
A7: 根拠法令 （具体的な 条項も記載） | G7: － | Y7: 関係する計画、通知等 | AE7: 人事・給与等業務・システム最適化計画 （平成16年2月27日・各府省情報化統括責任者（CIO）連絡会議決定、最終改定 平成24年1月17日）
A8: 主要政策・施策 | G8: IT戦略 | Y8: 主要経費 | AE8: その他の事項経費
A9: 事業の目的 （目指す姿を簡潔に。3行程度以内） | G9: 人事・給与等業務の共通化・効率化を図るとともに、システムの運用等に係る政府全体の経費の最小限化を行う。また同時に、安全性・信頼性の確保及び個人情報の保護を実現する。
A10: 事業概要 （5行程度以内。別添可） | G10: 各府省等が必要に応じて個別にシステム化を実施している人事・給与等業務について、上記「人事・給与等業務・システム最適化計画」に基づき、各府省等が共同で利用する「人事・給与関係業務情報システム」を新たに構築することにより、情報システムの統一化・集中化、情報の電子化と処理の自動化等による業務の効率化を目指す。平成22年度から各府省等でのシステム導入作業が開始されたことに伴い、運用センター業務、ヘルプデスク業務等を開始すると共に、必要となるハードウェアの調達や各府省等の移行支援等を実施した。
A11: 実施方法 | G11: 委託・請負
A12: 予算額・ 執行額 （単位:百万円） | P12: 25年度 | W12: 26年度 | AD12: 27年度 | AK12: 28年度 | AR12: 29年度要求
G13: 予算の状況 | I13: 当初予算 | P13: 2414 | W13: 2817 | AD13: 2699 | AK13: 2684 | AR13: 2474
I14: 補正予算 | P14: 0 | W14: 0 | AD14: 0
I15: 前年度から繰越し | P15: 0 | W15: 0 | AD15: 0 | AK15: 703
I16: 翌年度へ繰越し | P16: 0 | W16: 0 | AD16: -703
I17: 予備費等 | P17: 0 | W17: 110 | AD17: 4
I18: 計 | P18: =SUM(P13:V17) -> 2414 | W18: =SUM(W13:AC17) -> 2927 | AD18: =SUM(AD13:AJ17) -> 2000 | AK18: =SUM(AK13:AQ17) -> 3387 | AR18: =SUM(AR13:AX17) -> 2474
G19: 執行額 | P19: 2360 | W19: 2908 | AD19: 2000
G20: 執行率（％） | P20: =IF(P18=0, "-", P19/P18) -> 0.9776304888 | W20: =IF(W18=0, "-", W19/W18) -> 0.993508712 | AD20: =IF(AD18=0, "-", AD19/AD18) -> 1
A21: 成果目標及び成果実績 （アウトカム） | G21: 定量的な成果目標 | P21: 成果指標 | AB21: 単位 | AE21: 25年度 | AI21: 26年度 | AM21: 27年度 | AQ21: 中間目標 | AU21: 目標最終年度
AQ22: - | AS22: 年度 | AU22: - | AW22: 年度
G23: 全ての府省等の導入後に削減が見込まれる経費（当該目標値について見直し中） | Y23: 成果実績 | AB23: - | AE23: - | AI23: - | AM23: - | AQ23: - | AU23: -
Y24: 目標値 | AB24: - | AE24: - | AI24: - | AM24: - | AQ24: - | AU24: -
Y25: 達成度 | AB25: ％ | AE25: - | AI25: - | AM25: - | AQ25: - | AU25: -
A26: 横断的な施策に係る成果目標及び成果実績 （アウトカム） | H26: 定量的な成果目標 | P26: 成果指標 | AB26: 単位 | AE26: 25年度 | AI26: 26年度 | AM26: 27年度 | AQ26: 中間目標 | AU26: 目標最終年度
AS27: 年度 | AW27: 年度
G28: 目標・指標 | Y28: 成果実績
Y29: 目標値
Y30: 達成度 | AB30: ％
A31: ●● | E31: 関係 | G31: 算出方法
A32: 成果目標及び成果実績（アウトカム）欄についてさらに記載が必要な場合はチェックの上【別紙１】に記載
A33: 定量的な成果目標の設定が困難な場合 | B33: 定量的な目標が設定できない理由及び定性的な成果目標 | G33: 定量的な目標が設定できない理由 | AB33: 定性的な成果目標と25～27年度の達成状況・実績
B38: 事業の妥当性を検証するための代替的な達成目標及び実績 | G38: 代替目標 | P38: 代替指標 | AB38: 単位 | AE38: 25年度 | AI38: 26年度 | AM38: 27年度 | AQ38: 中間目標 | AU38: 目標最終年度
AS39: 年度 | AW39: 年度
Y40: 実績
Y41: 目標値
Y42: 達成度 | AB42: ％
A43: 活動指標及び活動実績 （アウトプット） | G43: 活動指標 | AB43: 単位 | AE43: 25年度 | AI43: 26年度 | AM43: 27年度 | AQ43: 28年度活動見込
G44: 年度末における本番稼働及び並行稼働の府省等の数 | Y44: 活動実績 | AB44: 府省等の数 | AE44: 本番稼働府省12府省等 並行稼働府省4府省等 | AI44: 本番稼働府省12府省等 並行稼働府省6府省等 | AM44: 本番稼働府省12府省等 並行稼働府省6府省等
Y45: 当初見込み | AB45: 府省等の数 | AE45: 本番稼働府省17府省等 並行稼働府省4府省等 | AI45: 本番稼働府省26府省等 並行稼働府省4府省等 | AM45: 本番稼働府省12府省等 並行稼働府省6府省等 | AQ45: 本番稼働府省25府省等 並行稼働府省4府省等
A46: 単位当たり コスト | G46: 算出根拠 | AB46: 単位 | AE46: 25年度 | AI46: 26年度 | AM46: 27年度 | AQ46: 28年度活動見込
G47: －／－ | Y47: 単位当たり コスト | AB47: － | AE47: 移行途上であり、算出困難である。なお、調達に当たっては、情報システムに関する外部有識者を含む「技術審査委員会」を開催し、適正な予算執行に努めているところである。
Y48: 計算式 | AB48: －/－
A49: 平成28・29年度予算内訳（単位：百万円） | C49: 歳出予算目 | L49: 28年度当初予算 | R49: 29年度要求 | X49: 主な増減理由
C50: 職員旅費 | L50: 1 | R50: 1
C51: 庁費 | L51: 3 | R51: 3
C52: 情報処理業務庁費 | L52: 2681 | R52: 2471
C56: 計 | L56: 2684 | R56: 2474
A57: 政策評価、経済・財政再生アクション・プログラムとの関係 | C57: 政策評価 | E57: 政策
E58: 施策
E59: 測定指標 | G59: 定量的指標 | AB59: 単位 | AE59: 25年度 | AI59: 26年度 | AM59: 27年度 | AQ59: 中間目標 | AU59: 目標年度
AS60: 年度 | AW60: 年度
Y61: 実績値
Y62: 目標値
G63: 定性的指標 | Y63: 目標 | AE63: 施策の進捗状況（目標）
AB64: 目標年度
AE67: 施策の進捗状況（実績）
E70: 本事業の成果と上位施策・測定指標との関係
C73: 経済・財政再生 アクション・プログラム | E73: 改革項目 | G73: 分野：
E74: KPI (第一階層） | G74: ＫＰＩ （第一階層） | AB74: 単位 | AE74: 計画開始時 | AI74: 27年度 | AM74: 28年度 | AQ74: 中間目標 | AU74: 目標最終年度
AG75: 年度 | AS75: 年度 | AW75: 年度
Y76: 成果実績
Y77: 目標値
Y78: 達成度 | AB78: ％
E79: KPI (第二階層） | G79: ＫＰＩ （第二階層） | AB79: 単位 | AE79: 計画開始時 | AI79: 27年度 | AM79: 28年度 | AQ79: 中間目標 | AU79: 目標最終年度
AG80: 年度 | AS80: 年度 | AW80: 年度
Y81: 成果実績
Y82: 目標値
Y83: 達成度 | AB83: ％
E84: 本事業の成果と改革項目・KPIとの関係
A87: 事業所管部局による点検・改善
C88: 項 目 | AD88: 評 価 | AG88: 評価に関する説明
A89: 国費投入の必要性 | C89: 事業の目的は国民や社会のニーズを的確に反映しているか。 | AD89: ○ | AG89: 人事・給与関係業務情報システムは、国家公務員の人事・給与に直接的に影響を与える情報を扱う極めて重要なシステムであり、国が責任を持ってシステム構築を行うべき業務である。
C90: 地方自治体、民間等に委ねることができない事業なのか。 | AD90: ○
C91: 政策目的の達成手段として必要かつ適切な事業か。政策体系の中で優先度の高い事業か。 | AD91: ○
A92: 事業の効率性 | C92: 競争性が確保されているなど支出先の選定は妥当か。 | AD92: ○ | AG92: 調達に当たっては、国庫債務負担行為を活用するとともに、原則、一般競争入札にて調達しており、さらに総合評価方式の案件については、情報システムに関する外部有識者を含む「技術審査委員会」を開催し、適正な調達手続き及び予算執行に努めているところである。また、支出の内容は、「人事・給与等業務・システム最適化計画」及び「人事給与業務効率化に向けた改善計画（平成27年3月27日 人事給与業務効率化推進会議決定、平成27年8月7日改定）」（以下、「改善計画」という。）により決定された業務処理のシステム構築・運用のために必要なものに限定されている。
E93: 一般競争入札、総合評価入札又は随意契約（企画競争）による支出のうち、一者応札又は一者応募となったものはないか。 | AD93: 有
E94: 競争性のない随意契約となったものはないか。 | AD94: 有
C95: 受益者との負担関係は妥当であるか。 | AD95: ‐
C96: 単位当たりコスト等の水準は妥当か。 | AD96: ‐
C97: 資金の流れの中間段階での支出は合理的なものとなっているか。 | AD97: ○
C98: 費目・使途が事業目的に即し真に必要なものに限定されているか。 | AD98: ○
C99: 不用率が大きい場合、その理由は妥当か。（理由を右に記載） | AD99: ‐
C100: その他コスト削減や効率化に向けた工夫は行われているか | AD100: ○
A101: 事業の有効性 | C101: 成果実績は成果目標に見合ったものとなっているか | AD101: △ | AG101: 本番稼働府省等の利用に際して、システムの性能面、品質面での課題が残っている。平成26年8月に人事給与業務効率化推進会議が設置され、政府全体で人事給与業務の抜本的な見直しに取り組むこととなり、平成27年3月に改善計画が策定された。各府省の移行スケジュールに基づき、平成28年度に全ての府省等において人事・給与関係業務情報システムへの移行を行うことを目指して取り組んでいる。
C102: 事業実施に当たって他の手段・方法等が考えられる場合、それと比較してより効果的あるいは低コストで実施できているか。 | AD102: ○
C103: 活動実績は見込みに見合ったものであるか。 | AD103: △
C104: 整備された施設や成果物は十分に活用されているか。 | AD104: ○
A105: 関連事業 | C105: 関連する事業がある場合、他部局・他府省等と適切な役割分担を行っているか。（役割分担の具体的な内容を各事業の右に記載） | AD105: ‐
C106: 所管府省・部局名 | P106: 事業番号 | T106: 事業名
A112: 点検・改善結果 | C112: 点検結果 | G112: ・アプリケーションについて、顕在的な障害や操作上の不具合などの性能面・品質面での課題が残っており、早期に是正する必要があり、障害対応を適切に行うとともに、改善計画に基づき、各府省の合意を得ながら、システム改修を引き続き実施する必要がある。 ・平成28年度中の各府省等の円滑な移行の実現に向けて、各府省等と十分情報共有を図り、府省等の移行スケジュールを踏まえ、引き続き各府省等が行うシステム移行作業への支援を実施する必要がある。
C113: 改善の 方向性 | G113: ・性能面・品質面に関する課題に対して、改善計画に基づき、各府省の合意を得て、優先的に解決が必要な改修項目について、昨年度に引き続き、今年度も集中的に改修を進める。 ・人事・給与関係業務情報システムをこれから導入する府省の移行を円滑かつ確実に進めるために、これらの府省等を対象とした移行作業に関する勉強会や利用者講習会を実施するほか、メールマガジンの発行、ＱＡ集及び利用者マニュアルの整備を進める。
A114: 外部有識者の所見
A115: ※ 外部有識者による点検の対象外の事業
A116: 行政事業レビュー・調達改善推進チームの所見
A117: 現状通り | F117: 人事・給与関係業務情報システムの本番稼働府省等に対する継続的な支援はもちろんのこと、本システムを新たに導入した府省の移行作業への支援を円滑かつ確実に実施するため、平成29年度予算概算要求において必要な予算額を計上すること。
A118: 所見を踏まえた改善点/概算要求における反映状況
A119: 縮減 | F119: 各種制度改正への対応や、人給システムを導入した府省等への移行・運用作業支援強化といった方策を実施するための予算措置を講ずるとともに、既存の運用・保守経費についても精査を行う。
A120: 備考
A122: 関連する過去のレビューシートの事業番号
A123: 平成22年度 | G123: － | Q123: 平成23年度 | W123: － | AG123: 平成24年度 | AM123: 2
A124: 平成25年度 | G124: 2 | Q124: 平成26年度 | W124: 2 | AG124: 平成27年度 | AM124: 2
A125: 資金の流れ （資金の受け取り先が何を行っているかについて補足する）（単位：百万円） | G125: ※平成27年度実績を記入。執行実績がない新規事業、新規要求事業については現時点で予定やイメージを記入。
U130: ・人事・給与関係業務情報システムに係る アプリケーション保守（二期） ・人事・給与関係業務情報システムの改修 に係る設計・開発（改善計画・機能向上案件 及び府省移行支援） ・人事・給与関係業務情報システムの改修に 係る設計・開発（改善計画・性能向上案件） ・人事・給与関係業務情報システムに係る 移行ツール改修 | AK130: ・人事・給与関係業務情報システムに係る アプリケーション保守（二期） ・人事・給与関係業務情報システムの改修 に係る設計・開発（改善計画・機能向上案件） ・人事・給与関係業務情報システムの改修に 係る設計・開発（改善計画・性能向上案件）
U137: ・人事・給与関係業務情報システムの機器及びソフトウェア賃貸借・保守（政府共通ＰＦへの移行） ・人事・給与関係業務情報システムに係る機器等賃貸借及び保守（第四期）
U143: ・人事・給与関係業務情報システムの運用サービス（政府共通ＰＦ） ・人事・給与関係業務情報システムのバックアップデータ退避
U148: ・人事・給与関係業務情報システムの運用・保守に係るプロジェクト管理支援
U153: ・人事・給与関係業務情報システムに係るヘルプデスク支援 | AK153: ・人事・給与関係業務情報システムに係るヘルプデスク支援
U158: ・人事・給与関係業務情報システムの改善計画に基づくアプリケーション改修に係るプロジェクト管理支援
U162: ・人事・給与関係業務情報システムアドバイザー ・庁費
A174: 費目・使途 （「資金の流れ」においてブロックごとに最大の金額が支出されている者について記載する。費目と使途の双方で実情が分かるように記載） | G174: A.沖電気工業（株） | AC174: B.東京センチュリーリース（株）
G175: 費 目 | L175: 使 途 | Y175: 金 額 (百万円） | AC175: 費 目 | AH175: 使 途 | AU175: 金 額 (百万円）
G176: 雑役務費 | L176: 人事・給与関係業務情報システムに係るアプリケーション保守（二期） | Y176: 415 | AC176: 機器借料 | AH176: 人事・給与関係業務情報システムの機器及びソフトウェア賃貸借・保守（政府共通ＰＦへの移行） | AU176: 879
G177: 雑役務費 | L177: 人事・給与関係業務情報システムの改修に係る設計・開発（改善計画・機能向上案件） | Y177: 70 | AC177: 機器借料 | AH177: 人事・給与関係業務情報システムに係る機器等賃貸借及び保守（第四期） | AU177: 106
G178: 雑役務費 | L178: 人事・給与関係業務情報システムの改修に係る設計・開発（改善計画・性能向上案件） | Y178: 59
G179: 雑役務費 | L179: 人事・給与関係業務情報システムに係る移行ツール改修 | Y179: 40
G186: 計 | Y186: =SUM(Y176:AB185) -> 584 | AC186: 計 | AU186: =SUM(AU176:AX185) -> 985
G187: C.富士通（株） | AC187: D.伊藤忠テクノソリューションズ（株）
G188: 費 目 | L188: 使 途 | Y188: 金 額 (百万円） | AC188: 費 目 | AH188: 使 途 | AU188: 金 額 (百万円）
G189: 雑役務費 | L189: 人事・給与関係業務情報システムの運用サービス（政府共通ＰＦ） | Y189: 256 | AC189: 雑役務費 | AH189: 人事・給与関係業務情報システムの運用・保守に係るプロジェクト管理支援 | AU189: 36
G190: 雑役務費 | L190: 人事・給与関係業務情報システムのバックアップデータ退避 | Y190: 6
G199: 計 | Y199: =SUM(Y189:AB198) -> 262 | AC199: 計 | AU199: =SUM(AU189:AX198) -> 36
G200: E.りらいあコミュニケーションズ（株） | AC200: F. ＰｗＣコンサルティング合同会社
G201: 費 目 | L201: 使 途 | Y201: 金 額 (百万円） | AC201: 費 目 | AH201: 使 途 | AU201: 金 額 (百万円）
G202: 雑役務費 | L202: 人事・給与関係業務情報システムに係るヘルプデスク支援 | Y202: 109 | AC202: 雑役務費 | AH202: 人事・給与関係業務情報システムの改善計画に基づくアプリ改修に係るプロジェクト管理支援 | AU202: 15
G212: 計 | Y212: =SUM(Y202:AB211) -> 109 | AC212: 計 | AU212: =SUM(AU202:AX211) -> 15
G214: 費 目 | L214: 使 途 | Y214: 金 額 (百万円） | AC214: 費 目 | AH214: 使 途 | AU214: 金 額 (百万円）
G225: 計 | Y225: =SUM(Y215:AB224) -> 0 | AC225: 計 | AU225: =SUM(AU215:AX224) -> 0
G226: G.その他 | AC226: H.
G227: 費 目 | L227: 使 途 | Y227: 金 額 (百万円） | AC227: 費 目 | AH227: 使 途 | AU227: 金 額 (百万円）
G228: 雑役務費 | L228: 人事・給与関係業務情報システムアドバイザー | Y228: 7
G229: 庁費 | L229: 光熱水料、電気料 | Y229: 2
G238: 計 | Y238: =SUM(Y228:AB237) -> 9 | AC238: 計 | AU238: =SUM(AU228:AX237) -> 0
A239: 費目・使途欄についてさらに記載が必要な場合はチェックの上【別紙２】に記載
B242: 支出先上位１０者リスト
B243: A.
C244: 支 出 先 | J244: 法 人 番 号 | P244: 業 務 概 要 | Y244: 支 出 額 （百万円） | AC244: 契約方式 | AH244: 入札者数 （応募者数） | AL244: 落札率 | AP244: 一者応札・一者応募又は 競争性のない随意契約となった 理由及び改善策 （支出額10億円以上）
A245: 1 | B245: 1 | C245: 沖電気工業（株） | J245: 2010601023529 | P245: 人事・給与関係業務情報システムに係るアプリケーション保守（二期） | Y245: 247 | AC245: 随意契約 （その他） | AH245: -
A246: 2 | B246: 1 | C246: 沖電気工業（株） | J246: 2010601023529 | P246: 人事・給与関係業務情報システムに係るアプリケーション保守（二期） | Y246: 168 | AC246: - | AH246: -
A247: 3 | B247: 1 | C247: 沖電気工業（株） | J247: 2010601023529 | P247: 人事・給与関係業務情報システムの改修に係る設計・開発（改善計画・機能向上案件） | Y247: 70 | AC247: 一般競争入札 | AH247: 1
A248: 4 | B248: 1 | C248: 沖電気工業（株） | J248: 2010601023529 | P248: 人事・給与関係業務情報システムの改修に係る設計・開発（改善計画・性能向上案件） | Y248: 59 | AC248: 一般競争入札 | AH248: 1
A249: 5 | B249: 1 | C249: 沖電気工業（株） | J249: 2010601023529 | P249: 人事・給与関係業務情報システムに係る移行ツール改修 | Y249: 40 | AC249: 一般競争入札 | AH249: 1
A250: 6 | B250: 1
A251: 7 | B251: 1
A252: 8 | B252: 1
A253: 9 | B253: 1
A254: 10 | B254: 1
B256: Ｂ.
C257: 支 出 先 | J257: 法 人 番 号 | P257: 業 務 概 要 | Y257: 支 出 額 （百万円） | AC257: 契約方式 | AH257: 入札者数 （応募者数） | AL257: 落札率 | AP257: 一者応札・一者応募又は 競争性のない随意契約となった 理由及び改善策 （支出額10億円以上）
A258: 1 | B258: 1 | C258: 東京センチュリーリース（株） | J258: 5010001166413 | P258: 人事・給与関係業務情報システムの機器及びソフトウェア賃貸借・保守（政府共通PFへの移行） | Y258: 879 | AC258: - | AH258: -
A259: 2 | B259: 1 | C259: 東京センチュリーリース（株） | J259: 5010001166413 | P259: 人事・給与関係業務情報システムに係る機器等賃貸借及び保守（第四期） | Y259: 106 | AC259: - | AH259: -
A260: 3 | B260: 1
A261: 4 | B261: 1
A262: 5 | B262: 1
A263: 6 | B263: 1
A264: 7 | B264: 1
A265: 8 | B265: 1
A266: 9 | B266: 1
A267: 10 | B267: 1
B269: Ｃ.
C270: 支 出 先 | J270: 法 人 番 号 | P270: 業 務 概 要 | Y270: 支 出 額 （百万円） | AC270: 契約方式 | AH270: 入札者数 （応募者数） | AL270: 落札率 | AP270: 一者応札・一者応募又は 競争性のない随意契約となった 理由及び改善策 （支出額10億円以上）
A271: 1 | B271: 1 | C271: 富士通（株） | J271: 1020001071491 | P271: 人事・給与関係業務情報システムの運用サービス（政府共通PF) | Y271: 189 | AC271: - | AH271: -
A272: 2 | B272: 1 | C272: 富士通（株） | J272: 1020001071491 | P272: 人事・給与関係業務情報システムの運用サービス（政府共通ＰＦ） | Y272: 67 | AC272: 随意契約 （その他） | AH272: -
A273: 3 | B273: 1 | C273: 富士通（株） | J273: 1020001071491 | P273: 人事・給与関係業務情報システムのバックアップデータ退避 | Y273: 6 | AC273: - | AH273: -
A274: 4 | B274: 1
A275: 5 | B275: 1
A276: 6 | B276: 1
A277: 7 | B277: 1
A278: 8 | B278: 1
A279: 9 | B279: 1
A280: 10 | B280: 1
B282: Ｄ.
C283: 支 出 先 | J283: 法 人 番 号 | P283: 業 務 概 要 | Y283: 支 出 額 （百万円） | AC283: 契約方式 | AH283: 入札者数 （応募者数） | AL283: 落札率 | AP283: 一者応札・一者応募又は 競争性のない随意契約となった 理由及び改善策 （支出額10億円以上）
A284: 1 | B284: 1 | C284: 伊藤忠テクノソリューションズ（株） | J284: 2010001010788 | P284: 人事・給与関係情報システムの運用・保守に係るプロジェクト管理支援 | Y284: 36 | AC284: - | AH284: -
A285: 2 | B285: 1
A286: 3 | B286: 1
A287: 4 | B287: 1
A288: 5 | B288: 1
A289: 6 | B289: 1
A290: 7 | B290: 1
A291: 8 | B291: 1
A292: 9 | B292: 1
A293: 10 | B293: 1
B295: Ｅ.
C296: 支 出 先 | J296: 法 人 番 号 | P296: 業 務 概 要 | Y296: 支 出 額 （百万円） | AC296: 契約方式 | AH296: 入札者数 （応募者数） | AL296: 落札率 | AP296: 一者応札・一者応募又は 競争性のない随意契約となった 理由及び改善策 （支出額10億円以上）
A297: 1 | B297: 1 | C297: りらいあコミュニケーションズ（株） | J297: 6290005004747 | P297: 人事・給与関係業務情報システムに係るヘルプデスク支援 | Y297: 109 | AC297: - | AH297: -
A298: 2 | B298: 1
A299: 3 | B299: 1
A300: 4 | B300: 1
A301: 5 | B301: 1
A302: 6 | B302: 1
A303: 7 | B303: 1
A304: 8 | B304: 1
A305: 9 | B305: 1
A306: 10 | B306: 1
B308: Ｆ.
C309: 支 出 先 | J309: 法 人 番 号 | P309: 業 務 概 要 | Y309: 支 出 額 （百万円） | AC309: 契約方式 | AH309: 入札者数 （応募者数） | AL309: 落札率 | AP309: 一者応札・一者応募又は 競争性のない随意契約となった 理由及び改善策 （支出額10億円以上）
A310: 1 | B310: 1 | C310: ＰｗＣコンサルティング合同会社 | J310: 1010401023102 | P310: 人事・給与関係業務情報システムの改善計画に基づくアプリ改修に係るプロジェクト管理支援 | Y310: 15 | AC310: 一般競争入札 | AH310: 1
A311: 2 | B311: 1
A312: 3 | B312: 1
... 33 more rows

Sheet 入力規則等
A1: 主要施策名 | B1: 該当の有無 | F1: 会計区分 | G1: 該当の有無 | K1: 主要経費名 | L1: 該当の有無 | P1: 実施方法 | Q1: 該当の有無 | U1: 事業番号 | W1: 省庁 | Y1: 開始年度 | AA1: 終了（予定）年度 | AC1: 行政事業レビュー推進チームの所見 | AE1: 所見を踏まえた改善点/概算要求における反映状況 | AG1: 契約方式 | AI1: 一体改革分野 | AK1: ブロック名
A2: 医療分野の研究開発関連 | C2: =IF(B2="","",A2) ->  | D2: =IF(C2="","",IF(D1<>"",CONCATENATE(D1,"、",C2),C2)) ->  | F2: 一般会計 | H2: =IF(G2="","",F2) ->  | I2: =IF(H2="","",IF(I1<>"",CONCATENATE(I1,"、",H2),H2)) ->  | K2: 社会保障 | M2: =IF(L2="","",K2) ->  | N2: =IF(M2="","",IF(N1<>"",CONCATENATE(N1,"、",M2),M2)) ->  | P2: 直接実施 | R2: =IF(Q2="","",P2) ->  | S2: =IF(R2="","",IF(S1<>"",CONCATENATE(S1,"、",R2),R2)) ->  | W2: （選択してください） | Y2: 不明 | AA2: 平成２５年度 | AC2: 廃止 | AE2: 廃止 | AG2: 一般競争入札 | AI2: 社会保障 | AK2: A
A3: 宇宙開発利用 | C3: =IF(B3="","",A3) ->  | D3: =IF(C3="",D2,IF(D2<>"",CONCATENATE(D2,"、",C3),C3)) ->  | F3: 交付税及び譲与税配付金特別会計 | H3: =IF(G3="","",F3) ->  | I3: =IF(H3="",I2,IF(I2<>"",CONCATENATE(I2,"、",H3),H3)) ->  | K3: 文教及び科学振興 | M3: =IF(L3="","",K3) ->  | N3: =IF(M3="",N2,IF(N2<>"",CONCATENATE(N2,"、",M3),M3)) ->  | P3: 委託・請負 | R3: =IF(Q3="","",P3) ->  | S3: =IF(R3="",S2,IF(S2<>"",CONCATENATE(S2,"、",R3),R3)) ->  | U3: 新28 | W3: 人事院 | Y3: 昭和元年度以前 | AA3: 平成２６年度 | AC3: 事業全体の 抜本的な改善 | AE3: 縮減 | AG3: 総合評価入札 | AI3: 社会資本整備等 | AK3: =CHAR(CODE(AK2)+1) -> B
A4: 沖縄振興 | D4: =IF(C4="",D3,IF(D3<>"",CONCATENATE(D3,"、",C4),C4)) ->  | F4: 地震再保険特別会計 | I4: =IF(H4="",I3,IF(I3<>"",CONCATENATE(I3,"、",H4),H4)) ->  | K4: 恩給関係 | N4: =IF(M4="",N3,IF(N3<>"",CONCATENATE(N3,"、",M4),M4)) ->  | P4: 補助 | U4: 新29 | Y4: 昭和２年度 | AA4: 平成２７年度 | AC4: 事業内容の 一部改善 | AE4: 執行等改善 | AG4: 随意契約 （企画競争） | AI4: 制度・地方行財政 | AK4: =CHAR(CODE(AK3)+1) -> C
A5: 海洋政策 | D5: =IF(C5="",D4,IF(D4<>"",CONCATENATE(D4,"、",C5),C5)) ->  | F5: 国債整理基金特別会計 | K5: 防衛関係 | P5: 負担 | Y5: 昭和３年度 | AA5: 平成２８年度 | AC5: 終了予定 | AE5: 予定通り終了 | AG5: 随意契約 （公募） | AI5: 文教・科学技術 外交・安全保障・防衛等 | AK5: D
A6: 科学技術・イノベーション | D6: =IF(C6="",D5,IF(D5<>"",CONCATENATE(D5,"、",C6),C6)) ->  | F6: 外国為替資金特別会計 | K6: 公共事業 | P6: 交付 | Y6: 昭和４年度 | AA6: 平成２９年度 | AC6: 現状通り | AE6: 現状通り | AG6: 随意契約 （少額） | AK6: E
A7: 観光立国 | F7: 財政投融資特別会計財政融資資金勘定 | K7: 経済協力 | P7: 貸付 | Y7: 昭和５年度 | AA7: 平成３０年度 | AG7: 随意契約 （その他） | AK7: F
A8: 交通安全対策 | F8: 財政投融資特別会計投資勘定 | K8: 中小企業対策 | P8: その他 | Y8: 昭和６年度 | AA8: 平成３１年度 | AG8: - | AK8: G
A9: 高齢社会対策 | F9: 財政投融資特別会計特定国有財産整備勘定 | K9: エネルギー対策 | Y9: 昭和７年度 | AA9: 平成３２年度 | AK9: H
A10: 国土強靭化施策 | F10: エネルギー対策特別会計エネルギー需給勘定 | K10: 食糧安定供給関係 | P10: =S8 ->  | Y10: 昭和８年度 | AA10: 平成３３年度 | AK10: I
A11: 子ども・若者育成支援 | F11: エネルギー対策特別会計電源開発促進勘定 | K11: その他の事項経費 | Y11: 昭和９年度 | AA11: 平成３４年度 | AK11: J
A12: 自殺対策 | F12: エネルギー対策特別会計原子力損害賠償支援勘定 | Y12: 昭和１０年度 | AA12: 平成３５年度 | AK12: K
A13: 障害者施策 | F13: 労働保険特別会計労災勘定 | K13: =N11 ->  | Y13: 昭和１１年度 | AA13: 平成３６年度 | AK13: L
A14: 少子化社会対策 | F14: 労働保険特別会計雇用勘定 | Y14: 昭和１２年度 | AA14: 平成３７年度 | AK14: M
A15: 食育推進 | F15: 労働保険特別会計徴収勘定 | Y15: 昭和１３年度 | AA15: 平成３８年度 | AK15: N
A16: 男女共同参画 | F16: 年金特別会計基礎年金勘定 | Y16: 昭和１４年度 | AA16: 平成３９年度 | AK16: O
A17: 地球温暖化対策 | F17: 年金特別会計国民年金勘定 | Y17: 昭和１５年度 | AA17: 平成４０年度 | AK17: P
A18: 犯罪被害者等施策 | F18: 年金特別会計厚生年金勘定 | Y18: 昭和１６年度 | AA18: 平成４１年度 | AK18: Q
A19: ＩＴ戦略 | F19: 年金特別会計健康勘定 | Y19: 昭和１７年度 | AA19: 平成４２年度 | AK19: R
A20: クールジャパン | F20: 年金特別会計子ども・子育て支援勘定 | Y20: 昭和１８年度 | AA20: 平成４３年度 | AK20: S
A21: 知的財産 | F21: 年金特別会計業務勘定 | Y21: 昭和１９年度 | AA21: 平成４４年度 | AK21: T
A22: 地方創生 | F22: 食料安定供給特別会計農業経営安定勘定 | Y22: 昭和２０年度 | AA22: 平成４５年度 | AK22: U
A23: ＯＤＡ | F23: 食料安定供給特別会計食糧管理勘定 | Y23: 昭和２１年度 | AA23: 平成４６年度 | AK23: V
A24: 2020年東京オリパラ | F24: 食料安定供給特別会計農業共済再保険勘定 | Y24: 昭和２２年度 | AA24: 平成４７年度 | AK24: =CHAR(CODE(AK23)+1) -> W
F25: 食料安定供給特別会計漁船再保険勘定 | Y25: 昭和２３年度 | AA25: 平成４８年度 | AK25: X
A26: =D24 ->  | F26: 食料安定供給特別会計漁業共済保険勘定 | Y26: 昭和２４年度 | AA26: 平成４９年度 | AK26: Y
F27: 食料安定供給特別会計業務勘定 | Y27: 昭和２５年度 | AA27: 平成５０年度 | AK27: =CHAR(CODE(AK26)+1) -> Z
F28: 食料安定供給特別会計国営土地改良事業勘定 | Y28: 昭和２６年度 | AA28: 平成５１年度 | AK28: a
F29: 国有林野事業債務管理特別会計 | Y29: 昭和２７年度 | AA29: 平成５２年度 | AK29: b
F30: 貿易再保険特別会計 | Y30: 昭和２８年度 | AA30: 平成５３年度 | AK30: c
F31: 特許特別会計 | Y31: 昭和２９年度 | AA31: 平成５４年度 | AK31: d
F32: 自動車安全特別会計保障勘定 | Y32: 昭和３０年度 | AA32: 平成５５年度 | AK32: e
F33: 自動車安全特別会計自動車検査登録勘定 | Y33: 昭和３１年度 | AA33: 平成５５年度以降 | AK33: f
F34: 自動車安全特別会計自動車事故対策勘定 | Y34: 昭和３２年度 | AA34: 終了予定なし | AK34: g
F35: 自動車安全特別会計空港整備勘定 | Y35: 昭和３３年度 | AK35: h
F36: 東日本大震災復興特別会計 | Y36: 昭和３４年度 | AK36: i
Y37: 昭和３５年度 | AK37: j
Y38: 昭和３６年度 | AK38: k
F39: =I37 ->  | Y39: 昭和３７年度 | AK39: l
Y40: 昭和３８年度 | AK40: m
Y41: 昭和３９年度 | AK41: n
Y42: 昭和４０年度 | AK42: o
Y43: 昭和４１年度 | AK43: p
Y44: 昭和４２年度 | AK44: q
Y45: 昭和４３年度 | AK45: r
Y46: 昭和４４年度 | AK46: s
Y47: 昭和４５年度 | AK47: t
Y48: 昭和４６年度 | AK48: u
Y49: 昭和４７年度 | AK49: v
Y50: 昭和４８年度
Y51: 昭和４９年度
Y52: 昭和５０年度
Y53: 昭和５１年度
Y54: 昭和５２年度
Y55: 昭和５３年度
Y56: 昭和５４年度
Y57: 昭和５５年度
Y58: 昭和５６年度
Y59: 昭和５７年度
Y60: 昭和５８年度
Y61: 昭和５９年度
Y62: 昭和６０年度
Y63: 昭和６１年度
Y64: 昭和６２年度
Y65: 昭和６３年度
Y66: 平成元年度
Y67: 平成２年度
Y68: 平成３年度
Y69: 平成４年度
Y70: 平成５年度
Y71: 平成６年度
Y72: 平成７年度
Y73: 平成８年度
Y74: 平成９年度
Y75: 平成１０年度
Y76: 平成１１年度
Y77: 平成１２年度
Y78: 平成１３年度
Y79: 平成１４年度
Y80: 平成１５年度
Y81: 平成１６年度
Y82: 平成１７年度
Y83: 平成１８年度
Y84: 平成１９年度
Y85: 平成２０年度
Y86: 平成２１年度
Y87: 平成２２年度
Y88: 平成２３年度
Y89: 平成２４年度
Y90: 平成２５年度
Y91: 平成２６年度
Y92: 平成２７年度
Y93: 平成２８年度
Y94: 平成２９年度
Y122: 新
